[Event "1st Chessable Sunway Formentera 2022"]
[Site "Formentera Punta Prima"]
[Date "2022.05.08"]
[Round "10.9"]
[White "Bergez, Luc"]
[Black "Papadiamandis, Elliot"]
[Result "1/2-1/2"]
[ECO "B20"]
[WhiteElo "2331"]
[BlackElo "2373"]
[Annotator "TA"]
[PlyCount "132"]
[EventDate "2022.05.05"]
[EventType "swiss"]
[EventCountry "ESP"]
[SourceTitle "playchess.com"]
[Source "ChessBase"]
[SourceQuality "1"]
[TimeControl "40/5400+30:1800+30"]

{[%evp 9,132,-7,0,0,0,4,14,0,11,-16,50,1,27,37,28,0,27,18,32,0,0,0,18,0,36,41,28,-11,-20,-20,-9,-8,-37,-120,0,0,0,0,16,24,21,41,29,-10,132,62,225,225,213,215,308,287,287,290,289,217,275,262,274,245,266,247,246,211,322,251,242,243,256,236,288,155,269,215,358,130,333,318,244,0,0,0,0,0,0,0,8,8,8,8,8,0,8,8,8,8,8,0,8,0,0,0,0,0,0,0,0,0,0,0,0,0,0,0,0,0,0,0,0,0,0,0,0,0,0]} 1. e4 {[%emt 1:31:00][%cal Be2e4,Be4e5][%mdl 32]} c5 {[%emt 1:31:00]} 2. d3 {[%emt 0:00:30]} Nc6 {[%emt 0:00:30]} 3. g3 {[%emt 0:00:30]} Nf6 {[%emt 0:00:30]} 4. f4 {[%emt 0:00:30]} d5 {[%emt 0:00:30]} 5. e5 {[%emt 0:00:30]} Ng4 {[%emt 0:00:30]} 6. Bg2 {[%emt 0:00:30] [#] B20: Sicilian: Unusual White 2nd moves.} h5 $146 {[%emt 0:00:30]} ({Predecessor:} 6... Nh6 7. Nf3 Nf5 8. g4 Nfd4 9. c3 Nxf3+ 10. Qxf3 e6 11. O-O h5 12. Qh3 g6 {0-1 (34) Muhren,W (2263)-Chuchelov,V (2571) Enschede 2005}) 7. h3 {[%emt 0:00:30]} Nh6 {[%emt 0:00:30][%cal Bg4h6,Bh6f5,Bf5h4][%mdl 32]} (7... Qa5+ 8. c3 $16) 8. Qxh5 {[%emt 0:00:30]} e6 {[%emt 0:00:30]} 9. Ne2 {[%emt 0:00:30]} b6 {[%emt 0:00:30]} (9... Bd7 $11) 10. O-O {[%emt 0:00:30]} (10. f5 $14 {deserves consideration.}) 10... g6 {[%emt 0:00:30]} 11. Qf3 {[%emt 0:00:30]} Nf5 {[%emt 0:00:30]} 12. c3 {[%emt 0:00:30]} Bb7 {[%emt 0:00:30]} 13. Qf2 {[%emt 0:00:30]} Qd7 {[%emt 0:00:30]} 14. g4 {[%emt 0:00:30]} Nh4 {[%emt 0:00:30]} 15. d4 {[%emt 0:00:30]} Ba6 {[%emt 0:00:30]} 16. Rd1 {[%emt 0:00:30]} cxd4 {[%emt 0:00:30]} 17. Nxd4 {[%emt 0:00:30]} Be7 {[%emt 0:00:30]} 18. Nxc6 {[%emt 0:00:30]} Qxc6 {[%emt 0:00:30]} 19. Bh1 {[%emt 0:00:30]} g5 {[%emt 0:00:30]} 20. fxg5 {[%emt 0:00:30]} Ng6 {[%emt 0:00:30][%csl LRe5,LRh3]} 21. Qg3 {[%emt 0:00:30]} (21. Bg2 $15) 21... Bc5+ {[%emt 0:00:30]} (21... O-O-O $1 $17 {[%cal Oh8h3] Hoping for ...Rxh3!} 22. Re1 Qc5+ 23. Be3 Qc7) 22. Be3 $11 {[%emt 0:00:30]} Qa4 {[%emt 0:00:30]} 23. Re1 {[%emt 0:00:30]} Nf4 {[%emt 0:00:30]} 24. Bg2 {[%emt 0:00:30]} Ne2+ {[%emt 0:00:30] [#]} 25. Rxe2 $1 {[%emt 0:00:30]} Bxe2 {[%emt 0:00:30]} 26. b3 {[%emt 0:00:30]} Qa6 {[%emt 0:00:30]} (26... Qb5 $11 27. c4 Bxc4 $1) 27. c4 {[%emt 0:00:30]} (27. Bxc5 $16 bxc5 28. c4 Bxc4 29. bxc4 Qxc4 30. Nc3) 27... Rd8 {[%emt 0:00:30]} (27... Qa5 $14) 28. Bxc5 $18 {[%emt 0:00:30]} bxc5 {[%emt 0:00:30]} 29. Qe3 {[%emt 0:00:30][%csl LRc5,LRe2]} Bd1 {[%emt 0:00:30]} (29... Bxg4 $142 30. hxg4 dxc4) 30. Nd2 {[%emt 0:00:30]} Bc2 {[%emt 0:00:30]} 31. cxd5 {[%emt 0:00:30]} (31. Qxc5 Rc8 32. Qf2 Qb6 $16) 31... exd5 {[%emt 0:00:30]} 32. Rc1 {[%emt 0:00:30]} (32. Qxc5 Rc8 33. Qf2 (33. Qxd5 Rd8 $14) 33... Qb6 $14) 32... Bg6 {[%emt 0:00:30]} 33. Qxc5 {[%emt 0:00:30]} (33. Rxc5 $6 Qd3 34. Qf4 d4 $18) 33... Qb6 {[%emt 0:00:30]} 34. Kf2 {[%emt 0:00:30]} Qxc5+ {[%emt 0:00:30]} 35. Rxc5 {[%emt 0:00:30]} Ke7 {[%emt 0:00:30] [#]} 36. Kg3 $1 {[%emt 0:00:30]} (36. Rxd5 $2 Rxd5 37. Bxd5 Rd8 38. Bxf7 Kxf7 $19) (36. Bxd5 Rxh3 37. Nf1 Rd3 $14) 36... d4 {[%emt 0:00:30]} (36... Rc8 $142 37. Rxd5 Rc3+ 38. Bf3 Rd8 39. Rxd8 Kxd8) 37. h4 {[%emt 0:00:30]} Rc8 {[%emt 0:00:30]} 38. Bc6 {[%emt 0:00:30]} Rc7 {[%emt 0:00:30]} 39. b4 {[%emt 0:00:30]} a6 {[%emt 0:00:30]} 40. Nc4 {[%emt 0:00:30]} ({Better is} 40. h5 $18) 40... Rb8 {[%emt 0:00:30]} (40... d3 $16 {is a better defense.}) 41. a3 {[%emt 0:30:30][%cal Ba2a3,Ba3a4][%mdl 32]} Bd3 {[%emt 0:30:30]} (41... d3 $142 42. Ba4 Rbc8) 42. Na5 $2 {[%emt 0:00:30]} (42. Nd6 $18 {is the precise move to win.}) 42... Bb5 $2 {[%emt 0:00:30]} (42... Rbc8 $16) 43. a4 {[%emt 0:00:30]} Be2 {[%emt 0:00:30]} 44. b5 {[%emt 0:00:30]} (44. Bf3 $18 Rxc5 45. bxc5 Bxf3 46. Kxf3) 44... axb5 $11 {[%emt 0:00:30] The position is equal.} 45. axb5 {[%emt 0:00:30] aiming for Kf4.} Ra7 {[%emt 0:00:30]} 46. Nc4 {[%emt 0:00:30]} Bxc4 {[%emt 0:00:30]} 47. Rxc4 {[%emt 0:00:30][%mdl 4096] Endgame KRR-KRB} Rd8 {[%emt 0:00:30]} 48. Rc2 {[%emt 0:00:30] With the idea Bf3.} d3 {[%emt 0:00:30]} 49. Rd2 {[%emt 0:00:30] Threatens to win with Bf3.} Ke6 {[%emt 0:00:30]} 50. Kf3 {[%emt 0:00:30] Be4 is the strong threat.} Kxe5 {[%emt 0:00:30]} 51. Be4 {[%emt 0:00:30]} Rd4 {[%emt 0:00:30]} 52. Bf5 {[%emt 0:00:30] Strongly threatening h5.} (52. Bxd3 Ra3 53. Ke2 (53. Re2+ $2 Kd6 $19) 53... Rxg4 $15) 52... Ra5 {[%emt 0:00:30]} 53. h5 {[%emt 0:00:30]} ({Much weaker is} 53. Bxd3 Ra3 54. Ke2 (54. Re2+ $2 Kd5 $19) 54... Rxg4 $15) 53... Rxb5 {[%emt 0:00:30]} 54. h6 {[%emt 0:00:30]} ({Much worse is} 54. Bxd3 Rb3 55. Ke2 Rxg4 $17) 54... Rf4+ $1 {[%emt 0:00:30]} 55. Ke3 {[%emt 0:00:30] Black must now prevent h7.} Rxf5 {[%emt 0:00:30]} 56. h7 {[%emt 0:00:30]} Rb8 {[%emt 0:00:30]} 57. Rb2 {[%emt 0:00:30]} Re8 {[%emt 0:00:30] ( -> ...Kd5+)} 58. h8=Q+ {[%emt 0:00:30]} Rxh8 {[%emt 0:00:30]} 59. Rb5+ {[%emt 0:00:30]} Kd6 {[%emt 0:00:30]} 60. gxf5 {[%emt 0:00:30] KR-KR} d2 {[%emt 0:00:30]} 61. Kxd2 {[%emt 0:00:30]} Rh5 {[%emt 0:00:30]} 62. f6 {[%emt 0:00:30]} Rh3 {[%emt 0:00:30]} 63. Ke2 {[%emt 0:00:30]} Ke6 {[%emt 0:00:30]} 64. Kf2 {[%emt 0:00:30]} Ra3 {[%emt 0:00:30]} 65. Kg2 {[%emt 0:00:30]} Rc3 {[%emt 0:00:30]} 66. Ra5 {[%emt 0:00:30]} Rb3 {[%emt 0:00:30] White really could win this.  Weighted Error Value: White=0.20 (precise) /Black=0.32} 1/2-1/2

[Event "1st Chessable Sunway Formentera 2022"]
[Site "Formentera Punta Prima"]
[Date "2022.05.08"]
[Round "10.10"]
[White "Chiku-Ratte, Olivier-Kenta"]
[Black "Alinasab, Mobina"]
[Result "1-0"]
[ECO "D33"]
[WhiteElo "2358"]
[BlackElo "2373"]
[Annotator "TA"]
[PlyCount "75"]
[EventDate "2022.05.05"]
[EventType "swiss"]
[EventCountry "ESP"]
[SourceTitle "playchess.com"]
[Source "ChessBase"]
[SourceQuality "1"]
[TimeControl "40/5400+30:1800+30"]

{[%evp 16,75,35,19,25,32,18,24,41,20,18,9,1,-7,13,0,35,34,36,41,64,59,84,98,85,103,86,87,127,124,122,127,128,127,370,361,491,485,522,514,521,516,854,846,827,770,968,955,948,770,724,710,1252,1257,1251,1186,1032,845,29988,29989,29990,29991]} 1. d4 {[%emt 0:00:03]} d5 {[%emt 0:00:06]} 2. c4 {[%emt 0:00:42]} e6 {[%emt 0:00:20]} 3. Nc3 {[%emt 0:00:12]} c5 {[%emt 0:00:05]} 4. cxd5 {[%emt 0:00:08]} exd5 {[%emt 0:00:08]} 5. Nf3 {[%emt 0:00:04]} Nf6 {[%emt 0:00:06]} 6. g3 {[%emt 0:00:04]} Nc6 {[%emt 0:00:05]} 7. Bg2 {[%emt 0:00:04]} cxd4 {[%emt 0:00:05] now supersedes 7...Be7.} 8. Nxd4 {[%emt 0:00:45]} Bc5 {[%emt 0:00:06]} 9. Nb3 {[%emt 0:01:05][%csl LRc5,LRd5]} (9. Be3 {with more complications.} Qb6 10. Na4 Qa5+ 11. Bd2) 9... Bb6 {[%emt 0:00:06] D33: Tarrasch Defence: 6 g3 sidelines.} 10. O-O {[%emt 0:00:19]} (10. Bxd5 Nb4 11. Bf3 Qxd1+ 12. Kxd1 O-O $11) 10... d4 {[%emt 0:00:05]} 11. Na4 {[%emt 0:04:12]} O-O {[%emt 0:00:08] White has an edge.} 12. Nxb6 {[%emt 0:13:00]} axb6 {[%emt 0:00:41]} 13. Bxc6 {[%emt 0:21:31]} bxc6 {[%emt 0:00:07] [#]} 14. Nxd4 $146 {[%emt 0:12:31]} ({Predecessor:} 14. Qxd4 Qc7 15. Bf4 Qb7 16. f3 c5 17. Qf2 Be6 18. Nc1 Nd5 19. Bd2 c4 20. e4 {1-0 (50) Holt,C (2549)-Abdusattorov,N (2627) Chess.com INT 2020}) 14... c5 {[%emt 0:09:20]} 15. Nb5 {[%emt 0:02:01]} Qe7 {[%emt 0:08:17]} 16. Bg5 {[%emt 0:06:43]} Bh3 {[%emt 0:23:08]} 17. Re1 $1 {[%emt 0:03:47]} ({Stronger than} 17. Bxf6 Qxf6 18. Nc3 Bxf1 19. Qxf1 b5 $17) 17... Qe5 {[%emt 0:18:41][%csl LRb2,LRg5]} 18. Bxf6 {[%emt 0:03:00]} Qe4 {[%emt 0:02:07][%csl Gh3][%cal Re4g2] [#]} 19. f3 $1 {[%emt 0:02:36]} Qe3+ {[%emt 0:00:01]} 20. Kh1 {[%emt 0:00:02][%cal Ob5c7]} gxf6 {[%emt 0:00:10]} 21. Nc3 $1 {[%emt 0:03:59]} ({Of course not} 21. Rg1 $6 Rfd8 22. Qe1 Rd2 $11) 21... Rad8 {[%emt 0:11:55] [#]} 22. Qc1 $1 {[%emt 0:05:19]} Qf2 {[%emt 0:08:59][%csl Gh3][%cal Rf2g2]} 23. Rg1 $36 {[%emt 0:00:13][%mdl 2048] Prevents Qg2+. Threatens to win with g4. White is really pushing.} Rfe8 {[%emt 0:04:55] [#] ( -> ...Rxe2)} 24. Qe1 {[%emt 0:10:46]} Qe3 {[%emt 0:02:06] This costs Black the game.} (24... Qxe1 $16 {was necessary.} 25. Rgxe1 Kg7) 25. g4 $18 {[%emt 0:01:24]} Qh6 {[%emt 0:02:14]} 26. Rd1 {[%emt 0:02:06]} Rd4 {[%emt 0:03:03]} 27. Rxd4 {[%emt 0:03:39]} cxd4 {[%emt 0:00:01]} 28. Ne4 {[%emt 0:00:16][%cal Bc3e4,Be4d6,Bd6f5][%mdl 32]} Kh8 {[%emt 0:06:27]} (28... Rxe4 $142 29. fxe4 Qf4) 29. Nd6 {[%emt 0:00:31][%csl LRe8,LRf7]} Rf8 {[%emt 0:00:20]} 30. Nf5 {[%emt 0:00:16][%csl LRd4,LRh6]} Qf4 {[%emt 0:00:29]} 31. Qh4 {[%emt 0:00:33][%csl LRf6,LRh3]} Qe5 {[%emt 0:00:43]} 32. Qxh3 {[%emt 0:00:15]} Qxe2 {[%emt 0:00:03]} 33. Nxd4 {[%emt 0:00:41] White wants to mate with Qh6.} ({Not} 33. Qh6 Qxf3+ 34. Rg2 Qf1+ 35. Rg1 Qf3+ 36. Rg2 Qf1+ 37. Rg1 Qf3+ $11) 33... Qd3 {[%emt 0:01:05] [#]} 34. Qh6 $1 {[%emt 0:00:40][%csl LRf6,LRf8][%cal Rh6f8]} Kg8 {[%emt 0:00:05]} (34... Re8 35. Qxf6+) 35. Qxf6 {[%emt 0:01:05]} Re8 {[%emt 0:00:06]} 36. Qf4 {[%emt 0:00:37] Hoping for Nf5.} h6 {[%emt 0:01:34]} 37. g5 {[%emt 0:00:58]} h5 {[%emt 0:00:11]} 38. Nf5 {[%emt 0:00:29] Weighted Error Value: White=0.04 (flawless) /Black=0.62} 1-0

[Event "1st Chessable Sunway Formentera 2022"]
[Site "Formentera Punta Prima"]
[Date "2022.05.08"]
[Round "10.11"]
[White "Vrolijk, Liam"]
[Black "Grutter, Tim"]
[Result "1/2-1/2"]
[ECO "E73"]
[WhiteElo "2467"]
[BlackElo "2241"]
[Annotator "TA"]
[PlyCount "29"]
[EventDate "2022.05.05"]
[EventType "swiss"]
[EventCountry "ESP"]
[SourceTitle "playchess.com"]
[Source "ChessBase"]
[SourceQuality "1"]
[TimeControl "40/5400+30:1800+30"]

{[%evp 14,29,22,22,26,12,24,17,13,12,21,23,29,22,21,-10,-7,-67]} 1. d4 {[%emt 0:00:16]} Nf6 {[%emt 0:00:17]} 2. c4 {[%emt 0:00:30]} g6 {[%emt 0:00:30]} 3. Nc3 {[%emt 0:00:04]} Bg7 {[%emt 0:00:00]} 4. e4 {[%emt 0:00:05]} d6 {[%emt 0:00:08]} 5. Be2 {[%emt 0:00:30]} O-O {[%emt 0:00:30][%cal Bh8f8,Bf8e8,Be8e4][%mdl 32]} 6. h4 {[%emt 0:00:30][%cal Bh2h4,Bh4h5][%mdl 32]} c5 {[%emt 0:00:30] The main line 6...c5 scores better than 6...h5.} 7. d5 {[%emt 0:08:53]} e6 {[%emt 0:00:00]} 8. h5 {[%emt 0:00:17]} exd5 {[%emt 0:00:08] E73: King's Indian: Averbakh Variation without 6...c5.} 9. exd5 {[%emt 0:00:30]} Re8 {[%emt 0:00:30]} 10. Kf1 {[%emt 0:00:07]} Ne4 {[%emt 0:11:18]} 11. Nxe4 {[%emt 0:05:57]} Rxe4 {[%emt 0:00:07]} 12. Nf3 {[%emt 0:12:25] Against Rh4} Bg4 {[%emt 0:06:27]} 13. hxg6 {[%emt 0:06:14]} hxg6 {[%emt 0:01:44] [#]} 14. Be3 $146 {[%emt 0:08:06]} ({Predecessor:} 14. Qc2 Re8 15. Bg5 Qb6 16. Bd3 Qxb2 17. Qxb2 Bxb2 18. Rb1 Bg7 19. Rxb7 Na6 20. Rh4 {½-½ (42) Schulenberg,H (2151)-Rain,R (2255) ICCF email 2013}) 14... Nd7 {[%emt 0:11:00]} 15. Qd2 {[%emt 0:10:21] Weighted Error Value: White=0.06 (flawless) /Black=0.02 (flawless)} ({White should play} 15. Qc2 $11 Re8 16. Rc1) 1/2-1/2

[Event "1st Chessable Sunway Formentera 2022"]
[Site "Formentera Punta Prima"]
[Date "2022.05.08"]
[Round "10.12"]
[White "Lever, Erwan"]
[Black "Tsatsalashvili, Keti"]
[Result "1-0"]
[ECO "E07"]
[WhiteElo "2209"]
[BlackElo "2331"]
[Annotator "TA"]
[PlyCount "75"]
[EventDate "2022.05.05"]
[EventType "swiss"]
[EventCountry "ESP"]
[SourceTitle "playchess.com"]
[Source "ChessBase"]
[SourceQuality "1"]
[TimeControl "40/5400+30:1800+30"]

{[%evp 18,75,0,-13,44,44,43,43,58,47,55,52,36,35,57,-47,107,131,136,83,172,175,156,146,225,217,292,305,298,277,245,0,0,6,790,772,6233,6020,3031,315,3128,443,2720,2536,2293,2166,2286,1945,29988,6470,29987,29986,29986,29987,29987,29988,29988,29989,29992,1232]} 1. d4 {[%emt 0:00:04]} d5 {[%emt 0:00:18]} 2. c4 {[%emt 0:00:07]} e6 {[%emt 0:00:07]} 3. Nf3 {[%emt 0:00:13]} Nf6 {[%emt 0:00:09]} 4. g3 {[%emt 0:00:07]} Bb4+ {[%emt 0:00:04]} 5. Bd2 {[%emt 0:00:05]} Be7 {[%emt 0:00:05]} 6. Bg2 {[%emt 0:00:11]} O-O {[%emt 0:00:05]} 7. O-O {[%emt 0:00:08]} c6 {[%emt 0:00:05]} 8. Bf4 {[%emt 0:02:55]} Nbd7 {[%emt 0:01:19]} 9. Nc3 {[%emt 0:03:40] 9.Qc2 is not played anymore.} dxc4 {[%emt 0:06:52] 9...Nh5 is vanishing.} 10. e4 {[%emt 0:00:22]} Nb6 {[%emt 0:09:17] E07: Closed Catalan: Main Line (5 Nf3 0-0 6 0-0 Nbd7).} (10... Re8 $11) 11. Qe2 $14 {[%emt 0:04:25][%mdl 1024] White has compensation.} Ne8 {[%emt 0:02:30]} 12. Rfd1 {[%emt 0:06:21] [#]} Nd6 $146 {[%emt 0:04:27] White is slightly better.} ({Predecessor:} 12... Nc7 13. Ne5 Bd6 14. Be3 Bxe5 15. dxe5 Qe7 16. a4 Nd7 17. Qxc4 b6 18. f4 Bb7 19. a5 Rfd8 {1-0 (29) Romanishin,O (2474)-Costa,J (2182) Figueira da Foz 2015}) 13. a4 {[%emt 0:06:40]} a5 {[%emt 0:03:21]} 14. h4 {[%emt 0:00:43]} Bd7 {[%emt 0:20:15]} 15. h5 {[%emt 0:02:23]} f5 {[%emt 0:05:49]} 16. d5 {[%emt 0:09:13]} (16. Ne5 $14) 16... exd5 $2 {[%emt 0:04:23]} (16... fxe4 $15 {stays ahead.} 17. Nxe4 Rxf4 $1 18. Nxd6 cxd5 $1 19. Nxb7 Re4 20. Qxe4 dxe4 21. Nxd8 exf3 22. Rxd7 Nxd7) 17. exd5 $16 {[%emt 0:03:00]} c5 {[%emt 0:00:05]} 18. h6 {[%emt 0:02:01]} ({Better is} 18. Ne5 $1 {[%cal Re5c6]}) 18... g6 {[%emt 0:07:07]} (18... gxh6 $16 19. Ne5 (19. Bxh6 Re8 $14) 19... Bg5) 19. Qe5 $18 {[%emt 0:08:16][%csl Gh6][%cal Re5g7]} Rf7 {[%emt 0:00:29] Prevents Qg7+.} 20. Qe3 $1 {[%emt 0:00:14] White is more active.} Rc8 {[%emt 0:02:08]} (20... Nbc8 $16 {was called for.} 21. Rd2 (21. Qxc5 g5 $16) 21... Ra6) 21. Re1 {[%emt 0:03:29]} Ne4 {[%emt 0:05:59]} 22. Ne5 {[%emt 0:09:28]} ({Don't take} 22. Nxe4 $6 Nxd5 23. Qe2 Nxf4 24. gxf4 fxe4 $16) 22... Rf8 {[%emt 0:00:45]} 23. Nxe4 {[%emt 0:03:44]} fxe4 {[%emt 0:01:21]} 24. Nxg6 $2 {[%emt 0:06:36]} hxg6 $11 {[%emt 0:04:00]} 25. Qxe4 $40 {[%emt 0:00:20][%mdl 128] Black needs to defend precisely.} Kf7 {[%emt 0:03:11][%mdl 8192] A mistake that costs the game.} (25... Bf6 $11 26. Qxg6+ Kh8) 26. d6 $18 {[%emt 0:01:44][%mdl 64] Discovered Attack} Bf6 {[%emt 0:05:27] [#]} 27. Qd5+ $1 {[%emt 0:01:38][%mdl 512]} Nxd5 {[%emt 0:00:07]} 28. Bxd5+ {[%emt 0:00:05]} Be6 {[%emt 0:00:09]} 29. Bxe6+ {[%emt 0:00:30]} Ke8 {[%emt 0:00:04]} 30. Bxc8+ {[%emt 0:00:23][%mdl 64] Discovered Attack} Kf7 {[%emt 0:00:18]} 31. Be6+ {[%emt 0:00:08][%cal Bc8e6,Be6c4,Bc4b5,Bb5c4][%mdl 32]} Ke8 {[%emt 0:00:03]} 32. d7+ {[%emt 0:01:02]} Ke7 {[%emt 0:00:07]} 33. Rad1 {[%emt 0:04:24]} (33. Bxc4+ $142 Kxd7 34. Rad1+ Bd4 {[#]} 35. Rxd4+ $1 {[%mdl 512]} cxd4 36. Bb5+ Kc8 37. Rc1+ Qc7 38. Bxc7) 33... Qb6 {[%emt 0:02:12]} 34. Bxc4+ {[%emt 0:00:52] This bishop pair is nice. White mates.} Kd8 {[%emt 0:00:24]} 35. Bb5 {[%emt 0:00:37]} Be7 {[%emt 0:00:33] [#]} 36. Rxe7 $1 {[%emt 0:00:19][%mdl 512]} Kxe7 {[%emt 0:06:03]} 37. Bg5+ {[%emt 0:00:20]} Kf7 {[%emt 0:00:04]} 38. Bc4+ {[%emt 0:00:07] Weighted Error Value: White=0.35/Black=0.88} 1-0

[Event "1st Chessable Sunway Formentera 2022"]
[Site "Formentera Punta Prima"]
[Date "2022.05.08"]
[Round "10.13"]
[White "Garcia Martin, Marta"]
[Black "Real, Thibault"]
[Result "0-1"]
[ECO "B23"]
[WhiteElo "2326"]
[BlackElo "2262"]
[Annotator "TA"]
[PlyCount "80"]
[EventDate "2022.05.05"]
[EventType "swiss"]
[EventCountry "ESP"]
[SourceTitle "playchess.com"]
[Source "ChessBase"]
[SourceQuality "1"]
[TimeControl "40/5400+30:1800+30"]

{[%evp 9,80,31,47,28,37,41,39,47,48,45,56,61,112,71,116,112,175,190,436,435,437,435,462,454,414,64,67,90,339,205,995,177,164,172,183,0,180,188,177,194,335,331,420,429,394,401,343,-91,-62,-176,-127,-130,-108,-226,-227,-220,-216,-275,-272,-277,-262,-306,-264,-387,-385,-370,-375,-356,-354,-359,-331,-318,-304]} 1. e4 {[%emt 1:22:34]} c5 {[%emt 1:28:24]} 2. Nc3 {[%emt 0:00:30]} g6 {[%emt 0:00:30]} 3. d4 {[%emt 0:00:30]} cxd4 {[%emt 0:00:30]} 4. Qxd4 {[%emt 0:00:30]} Nf6 {[%emt 0:00:30]} 5. Be3 {[%emt 0:00:30]} Nc6 {[%emt 0:00:30]} 6. Qd2 {[%emt 0:00:30] B23: Closed Sicilian: Lines without g3.} d6 {[%emt 0:00:30]} 7. f3 {[%emt 0:00:30]} h5 {[%emt 0:00:30]} 8. O-O-O {[%emt 0:00:30] [#] White is slightly better.} Qa5 $146 {[%emt 0:00:30]} ({Predecessor:} 8... Bg7 9. Nh3 Bxh3 10. gxh3 Rc8 11. f4 Qa5 12. a3 a6 13. Bg2 O-O 14. Kb1 b5 {½-½ (40) Greet,A (2401)-Blomqvist,E (2536) Chess.com INT 2021}) 9. Kb1 {[%emt 0:00:30]} Be6 {[%emt 0:00:30]} 10. Nge2 O-O-O ({Black should play} 10... Bg7 $14) 11. Nf4 Bd7 {[%emt 0:03:36]} 12. Qf2 {[%emt 0:09:56]} Bg7 {[%emt 0:00:30]} (12... Kb8 $16 {keeps fighting.}) 13. Nb5 $18 {[%emt 0:00:30]} Nb4 {[%emt 0:00:30]} (13... Bh6 {might work better.} 14. g3 Be6) 14. Nxa7+ {[%emt 0:00:30]} (14. a3 Bxb5 15. axb4 Qxb4 $11) 14... Kb8 {[%emt 0:00:30]} 15. a3 {[%emt 0:00:30]} Na6 {[%emt 0:00:30]} 16. Bb6 {[%emt 0:00:30]} Qa4 {[%emt 0:00:30]} 17. Bxd8 $2 {[%emt 0:00:30]} (17. Bxa6 $18 Qxa6 18. e5 (18. Bxd8 Rxd8 19. e5 Ng8 $11)) 17... Rxd8 $14 {[%emt 0:00:30]} 18. e5 {[%emt 0:00:30]} (18. Qb6 Nc7 $11) 18... dxe5 {[%emt 0:00:30]} (18... Ne8 $16) 19. Qb6 {[%emt 0:00:30] White threatens Bxa6 and mate.} Rf8 $2 {[%emt 0:00:30] [#]} (19... Nc7) 20. Nd5 $2 {[%emt 0:00:30]} (20. Bb5 $1 Bxb5 21. Nxb5) 20... Nxd5 $18 {[%emt 0:00:00]} 21. Rxd5 {[%emt 0:00:00] Threatens to win with Bb5.} Nc7 {[%emt 0:00:06]} 22. Rd2 {[%emt 0:00:19]} (22. Ra5 $18 Qd4 23. Qb3 (23. Rc5 $2 Na8 $19)) 22... e4 $2 {[%emt 0:00:30] [#]} (22... Bh6 $1 $11 {and Black stays safe.} 23. f4 (23. b3 Qxa3 24. Rxd7 Qc1+ 25. Ka2 Qxc2+ 26. Ka1 Qc1+ 27. Ka2 Qc2+ 28. Ka3 Bc1+ 29. Kb4 Bd2+ 30. Ka3 Bc1+ 31. Kb4 Bd2+ 32. Ka3 Bc1+ $11) 23... Bxf4) 23. fxe4 $1 {[%emt 0:00:37][%cal Of1e2]} Be5 {[%emt 0:00:51]} (23... Be6 $2 24. Nb5 Rc8 25. Nxc7 Rxc7 26. Rd8+ Rc8 27. Rxc8+ Kxc8 28. Bb5 $18) 24. Be2 {[%emt 0:00:26][%cal Oh1d1]} f6 {[%emt 0:00:31] [#]} (24... f5 $142) 25. Rhd1 $1 {[%emt 0:00:21]} Bd6 {[%emt 0:00:23]} (25... Qxa7 26. Qxa7+) 26. Rxd6 {[%emt 0:00:09]} exd6 {[%emt 0:00:16] [#]} 27. Qxd6 {[%emt 0:00:05]} Rf7 {[%emt 0:00:18][%cal Bf8f7,Bf7d7,Bd7d6][%mdl 32] [#]} 28. Rd3 $2 {[%emt 0:01:30]} Qxa7 $17 {[%emt 0:00:13]} 29. Rc3 {[%emt 0:00:17]} (29. Qg3 $15 Rg7 30. Bxh5) 29... Qg1+ {[%emt 0:00:18]} ({Better is} 29... Bc8 $19 30. Bc4 Rd7 31. Qxf6 Qg1+ 32. Ka2 Qxg2) 30. Ka2 {[%emt 0:00:22]} Bc6 {[%emt 0:01:02]} 31. Bc4 {[%emt 0:00:37]} (31. Qb4 $17 Qf2 32. Rxc6 Qxe2 33. Rb6) 31... Rd7 $19 {[%emt 0:00:07]} 32. Qxf6 {[%emt 0:00:20]} Bxe4 {[%emt 0:00:51]} (32... Qxg2 33. Qf8+ Ka7 34. Qc5+ Kb8 35. Qf8+ Ka7 36. Qc5+ Kb8 37. Qf8+ $11) 33. Qf8+ {[%emt 0:00:54]} Ka7 {[%emt 0:00:03]} 34. Qb4 {[%emt 0:00:30] aiming for Qa4+.} Qd4 {[%emt 0:00:39]} ({Don't go for} 34... Kb8 $2 35. g3 $19) 35. Rb3 {[%emt 0:00:28]} Rd6 {[%emt 0:00:52]} ({Stronger than} 35... Bxg2 36. Rd3 Na6 37. Qb3 $19) 36. Qa5+ {[%emt 0:00:32]} (36. g3 $142) 36... Na6 {[%emt 0:00:21]} ({Not} 36... Kb8 $2 37. Qb4 $19) 37. Rc3 {[%emt 0:00:31]} Bxg2 {[%emt 0:00:22]} 38. Bb3 {[%emt 0:00:28]} Bd5 {[%emt 0:00:22]} 39. Qb5 {[%emt 0:00:28]} Bxb3+ {[%emt 0:00:57]} 40. cxb3 {[%emt 0:00:00]} Qd5 {[%emt 0:00:00] Weighted Error Value: White=0.69/Black=0.44} 0-1